Cogmind - Beta 14 @@@ ROGUE MODE // 2024.12.17 @ 16:44:13 Player: Alien Result: Destroyed by Y-54 Guardian with Gatling Laser Performance ------------- Evolutions (4) 2000 Regions Visited (7) 1400 Robots Destroyed (61) 305 Value Destroyed (1825) 1825 Prototype IDs (19) 380 Alien Tech Used (0) 0 Bonus (351) 351 TOTAL SCORE: 6261 Bonus ------- High Alert Combat Kills 51 Registered with UFD 300 Cogmind --------- Core Integrity 0/850 Matter 300/300 Energy 100/100 System Corruption 11% Temperature Cool (6) Movement Core (50) Location -6/Lower Caves Parts ------- > --- POWER (2) -------- (None) > --- PROPULSION (4) --- (None) > --- UTILITY (7) ------ Advanced Heat Sink Core Analyzer > --- WEAPON (2) ------- (None) > --- INVENTORY (5) ---- Large Storage Unit Advanced Weight Redist. System Advanced Sensor Array Beamcaster Phase Cannon Peak State ------------ > --- POWER ------------ Deuterium Engine Light Angular Momentum Engine > --- PROPULSION ------- Spiked Treads Armored Huge Wheel > --- UTILITY ---------- Advanced Heat Sink Advanced Heat Sink Large Storage Unit Experimental Terrain Scanner Surveybot 17 Chip Improved Heavy Armor Plating > --- WEAPON ----------- Beamcaster Beamcaster > --- INVENTORY -------- Matter Compressor Improved Sensor Array Improved Targeting Computer Improved Targeting Computer Weapon Cycler Medium Armor Plating Hardened Light Armor Plating Improved Heavy Armor Plating Layered Medium Armor Plating Beamcaster Improved Grenade Launcher CPS Tube CPS Tube CPS Tube [Rating: 70] Favorites ----------- Power Improved Deuterium Engine Engine Improved Deuterium Engine Power Core Fission Core Propulsion Light Treads Treads Light Treads Wheel Armored Huge Wheel Hover Unit Improved Airjet Flight Unit Improved VTOL Module Utility Large Storage Unit Device Experimental Terrain Scanner Storage Large Storage Unit Processor Surveybot 17 Chip Protection Hardened Light Armor Plating Weapon Beamcaster Energy Gun Beamcaster Energy Cannon Heavy Plasma Cannon Ballistic Gun Autogun Ballistic Cannon Light Cannon Launcher Grenade Launcher Special Weapon Welding Torch Slashing Weapon Companion Sword Build | -11 -10 -10 -9 -9 -6 -6 -6 ------- Run | Yrd Mat Sub Rec Scr Fac Low Low Slots Evolved 8 | . . . . . 8 . . Power 1 | . . . . . 1 . . Propulsion 2 | . . . . . 2 . . Utility 5 | . . . . . 5 . . Weapon . | . . . . . . . . Parts Attached 100 | 7 9 3 5 20 51 5 . Power 8 | 1 . . 1 2 4 . . Engine 6 | 1 . . 1 2 2 . . Core 2 | . . . . . 2 . . Reactor . | . . . . . . . . Propulsion 22 | 2 2 . . 7 11 . . Treads 13 | 2 2 . . 7 2 . . Leg . | . . . . . . . . Wheel 1 | . . . . . 1 . . Hover 7 | . . . . . 7 . . Flight 1 | . . . . . 1 . . Utility 36 | 2 2 1 1 5 20 5 . Device 17 | 1 . 1 . 2 12 1 . Storage 5 | 1 1 . . 3 . . . Processor 5 | . 1 . . . 3 1 . Hackware . | . . . . . . . . Protection 9 | . . . 1 . 5 3 . Artifact . | . . . . . . . . Weapon 34 | 2 5 2 3 6 16 . . Energy Gun 9 | . . . . 4 5 . . Energy Cannon 6 | . . . . . 6 . . Ballistic Gun 7 | 2 2 1 2 . . . . Ballistic Cannon 2 | . 2 . . . . . . Launcher 5 | . . 1 1 1 2 . . Special Weapon 2 | . 1 . . . 1 . . Impact Weapon . | . . . . . . . . Slashing Weapon 3 | . . . . 1 2 . . Piercing Weapon . | . . . . . . . . Special Melee Weapon . | . . . . . . . . Unidentified Prototypes 5 | . . . . 1 4 . . Parts Lost 26 | . 1 1 . . 8 16 . Power 5 | . . 1 . . 2 2 . Propulsion 8 | . . . . . 4 4 . Utility 9 | . . . . . 1 8 . Weapon 4 | . 1 . . . 1 2 . Highest Loss Streak 14 | . 1 1 . . 3 14 . To Critical Strikes . | . . . . . . . . Average Slot Usage (%) 91 | . 94 89 89 98 80 79 . Engine 10 | . 14 4 3 13 7 . . Treads 23 | . 27 28 28 27 13 . . Hover 1 | . . . . . 2 19 . Device 8 | . . 14 5 5 16 12 . Storage 11 | . 13 14 14 13 6 4 . Processor 3 | . 9 . . . 7 7 . Protection 6 | . . . 8 8 7 12 . Energy Gun 6 | . . . . 10 8 . . Ballistic Gun 11 | . 20 11 24 13 . . . Ballistic Cannon 1 | . 6 14 1 . . . . Slashing Weapon 1 | . . . . 2 1 . . Peak Build Rating 70 | 7 8 10 11 32 70 68 10 Average Rating 27 | 5 6 8 9 21 60 53 10 On Entrance 17 | . 7 8 7 11 32 66 10 Naked Turns 31 | . . . . 31 . . . Heaviest Build 79 | 15 21 22 24 43 73 79 1 Greatest Support 80 | 3 40 40 40 40 80 46 3 Greatest Overweight (x) 6 | 4 4 . . 4 5 6 . Average Overweight (x) . | 3 . . . . 1 . . Largest Inventory Capacity 15 | 8 10 10 10 15 15 15 5 Average Capacity 12 | 7 9 10 10 13 15 12 5 Most Carried 15 | 2 10 10 10 15 15 15 5 Average Carried 12 | 1 7 9 9 13 14 11 5 Final Capacity 15 | 8 10 10 10 15 15 5 5 Final Carried 15 | 2 10 10 10 15 15 5 5 Class Distribution -------------------- 74% | Mutant 19% | Derelict-Mutant 4% | Derelict-Assassin Dominant Class ---------------- Mutant | -10/Materials Mutant | -10/Subcaves Mutant | -9/Recycling Mutant | -9/Scraptown Derelict-Mutant | -6/Factory Mutant | -6/Lower Caves Mutant | -6/Lower Caves Resources | -11 -10 -10 -9 -9 -6 -6 -6 ----------- Run | Yrd Mat Sub Rec Scr Fac Low Low Matter Collected 2031 | 324 278 56 171 329 719 154 . Remotely . | . . . . . . . . Salvage Created 2150 | 215 386 52 . . 1301 196 . Parts 94 | 15 24 7 . . 43 5 . Haulers Intercepted 4 | . 2 . . . 2 . . Recyclers Shooed 2 | 1 . . . . 1 . . Parts Field Recycled . | . . . . . . . . Retrieved Matter . | . . . . . . . . Parts Self-Destructed 21 | . . 13 . . . 8 . Prevented . | . . . . . . . . Kills | -11 -10 -10 -9 -9 -6 -6 -6 ------- Run | Yrd Mat Sub Rec Scr Fac Low Low Combat Hostiles Destroyed 41 | . 10 5 . . 22 4 . Melee 4 | . . . . . 4 . . Guns 18 | . 10 1 . . 7 . . Cannons 7 | . . 1 . . 4 2 . AOE 9 | . . 3 . . 6 . . Classes Destroyed 12 | 2 4 2 . . 3 1 . Worker 4 | . 2 . . . 2 . . Tunneler 6 | 6 . . . . . . . Hauler 4 | . 2 . . . 2 . . Recycler 1 | 1 . . . . . . . Turret 2 | . . 2 . . . . . Watcher 3 | . . . . . 3 . . Swarmer 15 | . 6 4 . . 4 1 . Grunt 19 | . 4 . . . 13 2 . Brawler 1 | . . . . . . 1 . Sentry 2 | . . . . . 2 . . Programmer 3 | . . . . . 3 . . Subdweller 1 | . . 1 . . . . . Best Kill Streak 9 | 2 7 4 . . 9 2 . Combat Bots Only 6 | . 3 4 . . 6 2 . Max Kills in Single Turn 6 | 1 1 3 . . 6 1 . Gunslinging . | . . . . . . . . Exploded 4 | . . 3 . . 4 . . Melee 1 | . . . . . 1 . . Uniques/NPCs Destroyed . | . . . . . . . . Combat | -11 -10 -10 -9 -9 -6 -6 -6 -------- Run | Yrd Mat Sub Rec Scr Fac Low Low Hostile Shots Fired 652 | . 59 96 . . 246 248 3 Missed 223 | . 13 49 . . 89 71 1 Damage Taken 6194 | . 491 473 . . 2699 2520 11 Core 1021 | . 83 85 . . 214 628 11 Absorbed by Shields . | . . . . . . . . Regen/Repaired (Parts) 113 | . 113 . . . . . . Core Remaining (%) 66 | 100 . . . 32 . . . Volleys Fired 147 | 9 39 20 . . 70 9 . Largest 2 | 2 2 2 . . 2 2 . Hottest 180 | 40 40 65 . . 180 180 . Shots Fired 273 | 18 74 29 . . 135 17 . Gun 202 | 18 71 5 . . 108 . . Cannon 58 | . . 18 . . 23 17 . Launcher 9 | . . 6 . . 3 . . Special 4 | . 3 . . . 1 . . Kinetic 112 | 18 71 23 . . . . . Thermal 151 | . 3 . . . 131 17 . Explosive 9 | . . 6 . . 3 . . Electromagnetic . | . . . . . . . . Robot Hit Streak 22 | 8 10 13 . . 22 10 . Robot Miss Streak 3 | 1 3 3 . . 3 1 . Penetration Max . | . . . . . . . . Secondary Targets 2 | . 1 . . . 1 . . Max Gunslinging Chain 1 | . 1 . . . 1 . . Shots Hit Robots 228 | 13 52 19 . . 129 15 . Core Hits 101 | 8 21 14 . . 54 4 . Critical Kills 1 | . . . . . . 1 . Critical Parts Destroyed 1 | . 1 . . . . . . Critical Strikes 8 | . 1 2 . . 4 1 . Burn 4 | . . . . . 4 . . Meltdown 1 | . . . . . . 1 . Destroy 1 | . 1 . . . . . . Blast 2 | . . 2 . . . . . Melee Attacks 32 | . . . . . 32 . . Impact . | . . . . . . . . Slashing 32 | . . . . . 32 . . Piercing . | . . . . . . . . Sneak Attacks 1 | . . . . . 1 . . Combat Hostiles . | . . . . . . . . Follow-up Attacks . | . . . . . . . . Damage Inflicted 6484 | 167 659 497 . . 4671 490 . Guns 2750 | 167 648 58 . . 1877 . . Cannons 1281 | . . 197 . . 594 490 . Explosions 1326 | . . 242 . . 1084 . . Melee 1102 | . . . . . 1102 . . Ramming 25 | . 11 . . . 14 . . Kinetic 1070 | 167 648 255 . . . . . Thermal 3747 | . . . . . 3257 490 . Explosive 540 | . . 242 . . 298 . . Electromagnetic . | . . . . . . . . Impact . | . . . . . . . . Slashing 1102 | . . . . . 1102 . . Piercing . | . . . . . . . . Highest Corruption 11 | . . . . . 9 11 11 Average Corruption 6 | . . . . . 5 9 11 Corruption Purged . | . . . . . . . . Corruption Blocked . | . . . . . . . . Effects 61 | . . . . . 46 15 . Message Errors 13 | . . . . . 11 2 . Matter Fused 15 | . . . . . 10 5 . Heat Flow Errors 8 | . . . . . 5 3 . Energy Discharges 10 | . . . . . 8 2 . Parts Rejected 1 | . . . . . 1 . . Parts Fused 2 | . . . . . 1 1 . Data Loss (minor) 6 | . . . . . 5 1 . Data Loss (major) 1 | . . . . . . 1 . Misfires 1 | . . . . . 1 . . Alerts 3 | . . . . . 3 . . Weapon Failures 1 | . . . . . 1 . . Overload Shots . | . . . . . . . . Overflow Damage 291 | . . . . . 279 12 . Projectiles 28 | . . . . . 16 12 . Explosions 239 | . . . . . 239 . . Melee 24 | . . . . . 24 . . Knockbacks 3 | . . 3 . . . . . Impact . | . . . . . . . . Kinetic 3 | . . 3 . . . . . Secondary . | . . . . . . . . Self-Inflicted Damage 158 | . . 40 . . 118 . . Shots 2 | . . 1 . . 1 . . Rammed 8 | . 5 . . . 3 . . Targets Rammed 8 | . 5 . . . 3 . . Kicked . | . . . . . . . . Crushed . | . . . . . . . . Highest Temperature 556 | . 20 . . . 366 556 . Average Temperature 115 | . 6 . . . 95 171 . Received Heat Transfer 1842 | . 201 204 . . 648 783 6 Effects 4 | . . . . . . 4 . Shutdowns 2 | . . . . . . 2 . Matter Decay 1 | . . . . . . 1 . Damage (minor) 1 | . . . . . . 1 . Siege Activations . | . . . . . . . . Robots Corrupted . | . . . . . . . . Combat Hostiles . | . . . . . . . . Parts Fried . | . . . . . . . . Impact Corruptions . | . . . . . . . . Robots Melted 4 | . . . . . 2 2 . Combat Hostiles 3 | . . . . . 1 2 . Parts Melted 17 | . . . . . 15 2 . Heat Transferred 5491 | . . . . . 4741 750 . Parts Sabotaged . | . . . . . . . . Parts Stolen . | . . . . . . . . Parts Stripped . | . . . . . . . . Power Chain Reactions . | . . . . . . . . Alert | -11 -10 -10 -9 -9 -6 -6 -6 ------- Run | Yrd Mat Sub Rec Scr Fac Low Low Peak Influence 495 | 35 222 . 138 . 495 . . Initial 129 | . . . 129 . . . . Average 106 | 17 97 . 69 . 139 . . Maximum Alert Level 2 | . 1 . . . 2 . . Low Security (%) 82 | 100 87 . 100 . 70 . . Level 1 9 | . 12 . . . 12 . . Level 2 8 | . . . . . 16 . . Level 3 . | . . . . . . . . Level 4 . | . . . . . . . . Level 5 . | . . . . . . . . High Security . | . . . . . . . . Max Security . | . . . . . . . . Squads Dispatched 11 | . 3 . . . 8 . . Investigation 3 | . 2 . . . 1 . . Extermination 3 | . . . . . 3 . . Reinforcement 5 | . 1 . . . 4 . . Assault . | . . . . . . . . Garrison . | . . . . . . . . Intercept . | . . . . . . . . Searches Triggered . | . . . . . . . . Construction Impeded 1 | . . . . . 1 . . Haulers Reinforced . | . . . . . . . . Active Scanning Responses . | . . . . . . . . Cargo Convoy Interrupts . | . . . . . . . . Stealth | -11 -10 -10 -9 -9 -6 -6 -6 --------- Run | Yrd Mat Sub Rec Scr Fac Low Low Distress Signals 2 | . 1 . . . 1 . . Communications Jammed . | . . . . . . . . Distress Signals . | . . . . . . . . Times Spotted 90 | . 25 8 . . 36 18 3 Peak Tracking Total 12 | . 6 6 . . 9 12 5 Tactical Retreats 13 | . 3 4 . . 3 3 . Traps | -11 -10 -10 -9 -9 -6 -6 -6 ------- Run | Yrd Mat Sub Rec Scr Fac Low Low Traps Triggered 7 | . 2 1 . . 4 . . Indirectly . | . . . . . . . . Trap Hack Attempts . | . . . . . . . . Triggered . | . . . . . . . . Disarmed . | . . . . . . . . Reprogrammed . | . . . . . . . . Reused . | . . . . . . . . Traps Extracted . | . . . . . . . . Installed . | . . . . . . . . Triggered . | . . . . . . . . Machines | -11 -10 -10 -9 -9 -6 -6 -6 ---------- Run | Yrd Mat Sub Rec Scr Fac Low Low Machines Disabled 9 | . . 3 . . 6 . . Max in Single Turn 3 | . . 1 . . 3 . . Machines Repaired . | . . . . . . . . Machines Dismantled . | . . . . . . . . Machines Sabotaged . | . . . . . . . . Overloaded Fab Kills . | . . . . . . . . Hacking | -11 -10 -10 -9 -9 -6 -6 -6 --------- Run | Yrd Mat Sub Rec Scr Fac Low Low Machines Accessed 31 | . 4 . 10 9 8 . . Terminals 16 | . 3 . 6 . 7 . . Fabricators . | . . . . . . . . Repair Stations 2 | . 1 . . . 1 . . Recycling Units 4 | . . . 4 . . . . Scanalyzers . | . . . . . . . . Garrison Access . | . . . . . . . . Total Hacks 103 | . 12 . 19 57 15 . . Successful 75 | . 6 . 10 57 2 . . Failed 28 | . 6 . 9 . 13 . . Catastrophic 4 | . 2 . . . 2 . . Database Lockouts . | . . . . . . . . Manual 36 | . 7 . 17 . 12 . . Terminals 34 | . 9 . 12 . 13 . . Fabricators . | . . . . . . . . Repair Stations 5 | . 3 . . . 2 . . Recycling Units 7 | . . . 7 . . . . Scanalyzers . | . . . . . . . . Garrison Access . | . . . . . . . . Terminal Hacks 61 | . 3 . 1 57 . . . Record 49 | . . . . 49 . . . Robot Analysis 6 | . . . . 6 . . . Prototype ID Bank 1 | . . . 1 . . . . Open Door 1 | . . . . 1 . . . Locate Traps 1 | . 1 . . . . . . Recall Investigation 2 | . 2 . . . . . . Derelict Proto ID Bank 1 | . . . . 1 . . . Fabricator Hacks . | . . . . . . . . Repair Station Hacks 2 | . 2 . . . . . . Scan Component 1 | . 1 . . . . . . Repair 1 | . 1 . . . . . . Recycling Unit Hacks . | . . . . . . . . Scanalyzer . | . . . . . . . . Garrison Access Hacks . | . . . . . . . . Unauthorized Hacks 12 | . 1 . 9 . 2 . . Terminals 7 | . 1 . 4 . 2 . . Botnet 6 | . 1 . 3 . 2 . . Skim 1 | . . . 1 . . . . Fabricators . | . . . . . . . . Repair Stations . | . . . . . . . . Recycling Units 5 | . . . 5 . . . . Reject 1 | . . . 1 . . . . Mask 1 | . . . 1 . . . . Tunnel 3 | . . . 3 . . . . Scanalyzers . | . . . . . . . . Garrison Access . | . . . . . . . . Data Cores Recovered . | . . . . . . . . Used . | . . . . . . . . Hacking Detections 19 | . 4 . 7 . 8 . . Full Trace Events 1 | . . . . . 1 . . Feedback Events . | . . . . . . . . Feedback Blocked . | . . . . . . . . Robot Schematics Acquired . | . . . . . . . . Robots Built . | . . . . . . . . Authchips . | . . . . . . . . Time . | . . . . . . . . Total Robot Build Rating . | . . . . . . . . Part Schematics Acquired . | . . . . . . . . Parts Built . | . . . . . . . . Authchips . | . . . . . . . . Time . | . . . . . . . . Total Part Build Rating . | . . . . . . . . Parts Repaired 1 | . 1 . . . . . . Time 13 | . 13 . . . . . . Parts Recycled . | . . . . . . . . Recycled Matter . | . . . . . . . . Retrieved Matter . | . . . . . . . . Retrieved Components . | . . . . . . . . Parts Scanalyzed . | . . . . . . . . Part Schematics Acquired . | . . . . . . . . Parts Damaged . | . . . . . . . . Bothacking | -11 -10 -10 -9 -9 -6 -6 -6 ------------ Run | Yrd Mat Sub Rec Scr Fac Low Low Used RIF Installer . | . . . . . . . . Robots Hacked . | . . . . . . . . Non-combat . | . . . . . . . . Combat . | . . . . . . . . Robot Hacks Applied . | . . . . . . . . Relay Couplers Released . | . . . . . . . . Fabnet Peak Effective % . | . . . . . . . . Robots Rewired . | . . . . . . . . Allies Hacked . | . . . . . . . . Hacks Repelled . | . . . . . . . . Allies | -11 -10 -10 -9 -9 -6 -6 -6 -------- Run | Yrd Mat Sub Rec Scr Fac Low Low Total Allies . | . . . . . . . . Largest Group . | . . . . . . . . Highest-Rated Group . | . . . . . . . . Highest-Rated Ally . | . . . . . . . . Total Orders . | . . . . . . . . Ally Attacks . | . . . . . . . . Total Damage . | . . . . . . . . Kills . | . . . . . . . . Allies Corrupted . | . . . . . . . . Allies Melted . | . . . . . . . . Intel | -11 -10 -10 -9 -9 -6 -6 -6 ------- Run | Yrd Mat Sub Rec Scr Fac Low Low Robot Analysis Total 6 | . . . . 6 . . . Derelict Logs Recovered . | . . . . . . . . Drone Launches . | . . . . . . . . Drone Recoveries . | . . . . . . . . Exploration | -11 -10 -10 -9 -9 -6 -6 -6 ------------- Run | Yrd Mat Sub Rec Scr Fac Low Low Turns Passed 11078 | 407 1223 759 966 4841 2564 317 1 Spaces Moved 5643 | 152 601 437 593 2394 1198 267 1 Core 452 | 152 75 . . 96 1 127 1 Treads 4333 | . 526 437 593 2298 479 . . Legs . | . . . . . . . . Wheels 537 | . . . . . 537 . . Hover 321 | . . . . . 181 140 . Flight . | . . . . . . . . Fastest Speed 50 | 50 160 160 160 50 97 50 50 Average Speed 170 | 234 171 160 160 188 149 97 50 Slowest Speed 360 | 250 250 160 160 250 360 350 50 Overloaded Moves . | . . . . . . . . Propulsion Burnouts . | . . . . . . . . Robots Hopped . | . . . . . . . . Cave-ins Triggered . | . . . . . . . . Exploration Rate (%) 50 | 10 90 24 99 96 34 48 3 Regions Visited 7 Branch Regions 5 Pre-discovered Areas 6 | . . . 3 3 . . . Known Exits Taken 3 | . . . . 1 1 1 . Unknown Exits Taken 4 | 1 1 1 1 . . . . Scrap Searched 14 | . . 2 . 11 . 1 . Spaces Dug 10 | . . . . . 10 . . Terrain Destroyed 104 | . . 25 . . 77 2 . Melee 2 | . . . . . 2 . . Projectile 6 | . . . . . 4 2 . AOE 96 | . . 25 . . 71 . . Terrain Rammed . | . . . . . . . . Walls Destroyed . | . . . . . . . . Machines Disabled . | . . . . . . . . Actions | -11 -10 -10 -9 -9 -6 -6 -6 --------- Run | Yrd Mat Sub Rec Scr Fac Low Low Total 6802 | 183 719 468 614 2723 1787 307 1 Wait 732 | 14 43 6 2 263 384 20 . Move 5636 | 151 600 436 592 2393 1197 266 1 Hop . | . . . . . . . . Pick Up 62 | 2 10 1 6 25 15 3 . Fast Attach 57 | 7 6 1 3 14 25 1 . Attach 21 | . 2 1 2 . 13 3 . Detach 17 | . 6 1 1 . 9 . . Swap 22 | . 1 1 . 6 13 1 . Drop 68 | . 7 1 8 22 26 4 . Fire 147 | 9 39 20 . . 70 9 . Melee 32 | . . . . . 32 . . Ram 3 | . . . . . 3 . . Kick . | . . . . . . . . Crush 5 | . 5 . . . . . . Escape Stasis . | . . . . . . . . Rewire . | . . . . . . . . Trap . | . . . . . . . . Miscellaneous . | . . . . . . . . Route ------- -11/Scrapyard -10/Materials (discovered 4 exits: [*Mat x2] / [*Min] / [*Sub]) -10/Subcaves -9/Recycling (discovered 2 exits: [*Fac] / *Scr) -9/Scraptown (discovered 2 exits: *Fac x2) -6/Factory (discovered 2 exits: Fac / *Low) -6/Lower Caves -6/Lower Caves (discovered 1 exit: Fac) History --------- Turn | Location | Event 16 | -11/Scrapyard | Discovered new exit (range 14) 408 | -11/Scrapyard | Entered Materials 429 | -10/Materials | Build established: Mutant 803 | -10/Materials | Discovered new exit (range 12) 866 | -10/Materials | Discovered new exit (range 8) 1106 | -10/Materials | Repaired Lgt. Treads 1328 | -10/Materials | Discovered new exit (range 16) 1615 | -10/Materials | Discovered new exit (range 11) 1631 | -10/Materials | Entered Subcaves 1718 | -10/Subcaves | A swath of the cavern ceiling suddenly collapsed 2171 | -10/Subcaves | A swath of the cavern ceiling suddenly collapsed 2224 | -10/Subcaves | Shifting Twisted Machinery released Flamer 2227 | -10/Subcaves | Shifting Twisted Machinery released Flamer 2290 | -10/Subcaves | Core integrity fell below 50% 2336 | -10/Subcaves | Discovered new exit (range 11) 2390 | -10/Subcaves | Entered Recycling 3133 | -9/Recycling | Discovered new exit (range 8) 3314 | -9/Recycling | Scanned before Scraplab entrance 3351 | -9/Recycling | Discovered new exit (range 3) 3356 | -9/Recycling | Entered Scraptown 3435 | -9/Scraptown | Heard Great Nut preacher, LISTEN AND RECITE! 3806 | -9/Scraptown | Discovered new exit (range 5) 3976 | -9/Scraptown | Visited Cyclists 4030 | -9/Scraptown | Visited Comm Corps 4102 | -9/Scraptown | Visited SPCMW 4489 | -9/Scraptown | Visited Awakened 4545 | -9/Scraptown | Visited UFD Registry 4556 | -9/Scraptown | Visited Bundlers 5087 | -9/Scraptown | Visited Assassins FH 5140 | -9/Scraptown | Visited Supply Room 5278 | -9/Scraptown | Registered with UFD as "Fissionroller" 5379 | -9/Scraptown | Visited Cartography Club 5442 | -9/Scraptown | Found Surveybot 17 Chip 6131 | -9/Scraptown | Released all parts (6) 6157 | -9/Scraptown | Learned location of Lower Caves (-6) 6157 | -9/Scraptown | Learned location of Quarantine (-3) 6157 | -9/Scraptown | Learned 8 Factory zone layouts 6157 | -9/Scraptown | Learned 12 Factory zone layouts 6157 | -9/Scraptown | Learned 16 Research zone layouts 6157 | -9/Scraptown | Learned 24 Upper Caves zone layouts 6157 | -9/Scraptown | Learned 12 Proximity Caves zone layouts 6157 | -9/Scraptown | Learned 4 Armory zone layouts 6157 | -9/Scraptown | Learned Storage emergency access door positions 6157 | -9/Scraptown | Learned location of 2 exits from Lower Caves 6157 | -9/Scraptown | Learned location of 3 exits from Upper Caves 6157 | -9/Scraptown | Learned location of 1 exit from Proximity Caves 6157 | -9/Scraptown | Identified exit to Factory 6162 | -9/Scraptown | Found Deep Structural Scanner 6354 | -9/Scraptown | Visited Infowarlord's Domain 6371 | -9/Scraptown | Found Exp. Terrain Scanner 6455 | -9/Scraptown | Visited Research Penetration Think Tank 6460 | -9/Scraptown | Build established: Derelict-Mutant 6755 | -9/Scraptown | Visited Observation Area 6904 | -9/Scraptown | Visited DA-N13 Charitable Foundation 6933 | -9/Scraptown | Found DCF Scrap (28 items) 7121 | -9/Scraptown | Visited Analyses Database 7174 | -9/Scraptown | Visited Sword Containment 7269 | -9/Scraptown | Visited Scrap Suit Storage 7325 | -9/Scraptown | Visited Science Guys 7389 | -9/Scraptown | Visited Derelict Rescue Squad 7509 | -9/Scraptown | Build established: Mutant 8197 | -9/Scraptown | Entered Factory 8197 | -6/Factory | Evolved 8 slots: Power x1, Propulsion x2, Utility x5 8198 | -6/Factory | Identified exit to Factory 8199 | -6/Factory | Identified exit to Lower Caves 8510 | -6/Factory | Build established: Derelict-Mutant 8814 | -6/Factory | Build established: Derelict-Assassin 9575 | -6/Factory | Build established: Derelict-Mutant 9577 | -6/Factory | Lost 3 parts (1p2n) 10039 | -6/Factory | Lost 3 parts (1p1n1w) 10056 | -6/Factory | Spotted B-75 Beast 10274 | -6/Factory | Build established: Mutant 10761 | -6/Factory | Entered Lower Caves 10762 | -6/Lower Caves | Identified exit to Lower Caves 10778 | -6/Lower Caves | Attracted the attention of an 0b10 checkpoint 10820 | -6/Lower Caves | Attracted the attention of an 0b10 outpost 10910 | -6/Lower Caves | Encountered a Warlord checkpoint 10963 | -6/Lower Caves | Lost 3 allies 10988 | -6/Lower Caves | System corruption reached 10% 11009 | -6/Lower Caves | Core integrity fell below 50% 11044 | -6/Lower Caves | Lost 14 parts (2p4n6u2w) 11070 | -6/Lower Caves | Core integrity fell below 20% 11078 | -6/Lower Caves | Entered another Lower Caves area 11079 | -6/Lower Caves | Destroyed by Y-54 Guardian with Gatling Laser Last Messages --------------- 11012_ Acquired Adv. Sensor Array. 11013_ Dropped CPS Tube. 11013_ Imp. Targeting Computer destroyed. 11014_ Acquired Adv. Weight Redist. System. 11017_ Critical hit (Burn: +37). 11025_ Acquired 18 matter. 11029_ System corrupted: Matter fused (-10). 11046_ Searching scrap... 11046_ Found Core Analyzer. 11046_ Found Matter Compressor. 11046_ Found Imp. Heavy Armor Plating. 11046_ Found 53 Matter. 11047_ Acquired 10 matter. 11047_ Acquired Core Analyzer. 11049_ Acquired 10 matter. 11053_ System corrupted: Heat flow error (+234). LOCATION=LOWER CAVES GOAL=ESCAPE Loading 1 Lower Caves exit... [Achievement: This Is Interesting...] Map ----- +----------------------------------------------------+ | ?????????????????????????????????????????????????? | | ?????????????????????????????????????????????????? | | ?????????????????????????????????????????????????? | | ?????????????????????????????????????????????????? | | ?????????????????????????????????????????????????? | | ?????????????????????????????????????????????????? | | ?????????????????????????????????????????????????? | | ?????????????????????????????????????????????????? | | ?????????????????????????????????????????????????? | | ?????????????????????????????????????????????????? | | ?????????????????????????????????????????????????? | | ?????????????????????????????????????????????????? | | ?????????????????????????????????????????????????? | | ?????????????????????????????????????????????????? | | ?????????????????????????????????????????????????? | | ?????????????????????????????????????????????????? | | ???????????????????????????########??????????????? | | ???????????????????????#### s #??????????????? | | ??????????????????????## #??????????????? | | ??????????????????????# g #??????????????? | | ??????????? ???????# Y #??????????????? | | ???????????? ##### #??????????????? | | ???????????????? #??????????????? | | ???????????????????? ??????????????????? | | ???????????????????????# #?????????????????????? | | ???????????????????????# @##?????????????????????? | | ???????????????????????# #??????????????????????? | | ???????????????????????# #??????????????????????? | | ???????????????????????# ??????????????????????? | | ??????????????????????? ??????????????????????? | | ??????????????????????? ??????????????????????? | | ??????????????????????# ??????????????????????? | | ??????????????????????# ?????????????????????? | | ??????????????????????# ?????????????????????? | | ?????????????????????? ?????????????????????? | | ?????????????????????? ?????????????????????? | | ?????????????????????? ????????????????????? | | ????????????????????? ????????????????????? | | ????????????????????? ????????????????????? | | ????????????????????? ????????????????????? | | ??????????????????????? ?????????????????????? | | ?????????????????????????????????????????????????? | | ?????????????????????????????????????????????????? | | ?????????????????????????????????????????????????? | | ?????????????????????????????????????????????????? | | ?????????????????????????????????????????????????? | | ?????????????????????????????????????????????????? | | ?????????????????????????????????????????????????? | | ?????????????????????????????????????????????????? | | ?????????????????????????????????????????????????? | +----------------------------------------------------+ Best States ------------- Heat Dissipation 83 Energy Generation 29 Energy Capacity 1110 Matter Stores 359 Matter Capacity 500 Sight Range 16 Robot Scan Range 16 Terrain Scan Range 30 Terrain Scan Density 1210 Additional Mass Support 9 Armor Coverage 1200 Evasion (%) 50 Targeting Accuracy 12 Core Analysis 6 Recoil Reduction 4 Item Schematics ----------------- None Robot Schematics ------------------ None Fabricated ------------ Nothing Alien Tech Used ----------------- None Achievements -------------- This Is Interesting... Challenges ------------ None Game ------ Seed StasisCoolantMatter Manual? 0 Play Time 01:32:21 Cumulative 39.5 hours Start 2024.12.17 @ 00:58:03 End 2024.12.17 @ 16:44:13 Sessions 3 Manual Loads 0 Difficulty Rogue Special Mode None Game No. 44 Rogue 44 Adventurer 0 Explorer 0 Win Type - Total 0 Types 0/0/0/0/0/0/0/0/0 Lore% 28 Gallery% 35 Achievement% 36 Wizard Run 0 Options --------- Layout 0 ASCII 0 Keyboard 1 Movement Numpad Keybinds 0 Fullscreen 1 Font 24/Smallcaps Map View 76x56 Zoom Use 0% Tactical HUD 1 Map Filters NONE Filters NONE Steam 1 RUN: 4486e2bb-87c1-49aa-93b6-f96fc5af67ba